Cogmind - Beta 13 @@@ ROGUE MODE // 2024.07.27 @ 11:27:08 Player: Longball Result: Destroyed by YI-UF0 with YI-UF0's Doublenader Performance ------------- Evolutions (0) 0 Regions Visited (2) 400 Robots Destroyed (15) 75 Value Destroyed (261) 261 Prototype IDs (2) 40 Alien Tech Used (0) 0 Bonus (0) 0 TOTAL SCORE: 776 Bonus ------- None Cogmind --------- Core Integrity 0/250 Matter 290/300 Energy 85/100 System Corruption 2% Temperature Cool (0) Movement Core (50) Location -10/Mines Parts ------- > --- POWER (1) -------- (None) > --- PROPULSION (2) --- (None) > --- UTILITY (2) ------ Seismic Detector > --- WEAPON (2) ------- (None) > --- INVENTORY (5) ---- Light Ion Engine Aluminum Leg High-capacity Matter Pod (200) Sensor Array Mining Laser Peak State ------------ > --- POWER ------------ Light Ion Engine > --- PROPULSION ------- Aluminum Leg Aluminum Leg > --- UTILITY ---------- Medium Storage Unit Seismic Detector > --- WEAPON ----------- EM Pulse Gun Light Assault Rifle > --- INVENTORY -------- Light Ion Engine Light Treads Light Treads Aluminum Leg Aluminum Leg Wheel Compact Wheel Huge Storage Unit Medium Laser Small Laser [Rating: 8] Favorites ----------- Power Light Ion Engine Engine Light Ion Engine Propulsion Aluminum Leg Treads Light Treads Leg Aluminum Leg Wheel Compact Wheel Utility Seismic Detector Device Seismic Detector Storage Medium Storage Unit Weapon EM Pulse Gun Energy Gun EM Pulse Gun Ballistic Gun Light Assault Rifle Build | -11 -10 -10 ------- Run | Yrd Mat Min Slots Evolved . | . . . Power . | . . . Propulsion . | . . . Utility . | . . . Weapon . | . . . Parts Attached 15 | 8 5 2 Power 1 | 1 . . Engine 1 | 1 . . Core . | . . . Reactor . | . . . Propulsion 6 | 2 3 1 Treads 1 | 1 . . Leg 4 | 1 3 . Wheel 1 | . . 1 Hover . | . . . Flight . | . . . Utility 3 | 2 1 . Device 1 | 1 . . Storage 2 | 1 1 . Processor . | . . . Hackware . | . . . Protection . | . . . Artifact . | . . . Weapon 5 | 3 1 1 Energy Gun 3 | 3 . . Energy Cannon . | . . . Ballistic Gun 2 | . 1 1 Ballistic Cannon . | . . . Launcher . | . . . Special Weapon . | . . . Impact Weapon . | . . . Slashing Weapon . | . . . Piercing Weapon . | . . . Special Melee Weapon . | . . . Unidentified Prototypes . | . . . Corrupted Parts 1 | . 1 . System Corruption 2 | . 2 . Parts Lost 6 | . . 6 Power 1 | . . 1 Propulsion 3 | . . 3 Utility . | . . . Weapon 2 | . . 2 Highest Loss Streak 6 | . . 6 To Critical Strikes . | . . . Average Slot Usage (%) 98 | . 99 97 Engine 13 | . 14 13 Treads 4 | . 6 . Leg 22 | . 20 27 Device 14 | . 14 14 Storage 13 | . 14 13 Energy Gun 18 | . 20 13 Ballistic Gun 9 | . 7 14 Naked Turns . | . . . Heaviest Build 18 | 13 18 17 Greatest Support 20 | 20 20 20 Greatest Overweight (x) 1 | 1 . . Average Overweight (x) . | . . . Largest Inventory Capacity 10 | 8 10 10 Average Capacity 9 | 7 9 9 Most Carried 10 | 7 10 10 Average Carried 8 | 5 8 9 Final Capacity 10 | 8 10 5 Final Carried 10 | 6 10 5 Class Distribution -------------------- 100% | Mutant Dominant Class ---------------- Mutant | -10/Materials Mutant | -10/Mines Resources | -11 -10 -10 ----------- Run | Yrd Mat Min Matter Collected 571 | 280 91 200 Remotely . | . . . Salvage Created 377 | 125 252 . Parts 30 | 9 21 . Haulers Intercepted . | . . . Recyclers Shooed 1 | 1 . . Parts Field Recycled . | . . . Retrieved Matter . | . . . Parts Self-Destructed . | . . . Prevented . | . . . Kills | -11 -10 -10 ------- Run | Yrd Mat Min Combat Hostiles Destroyed 8 | . 8 . Guns 7 | . 7 . AOE 1 | . 1 . Classes Destroyed 6 | 2 4 . Worker 1 | . 1 . Tunneler 3 | 3 . . Recycler 1 | 1 . . Watcher 2 | . 2 . Swarmer 6 | . 6 . Grunt 2 | . 2 . Best Kill Streak 5 | 4 5 . Combat Bots Only 5 | . 5 . Max Kills in Single Turn 2 | 2 1 . Gunslinging . | . . . Exploded 1 | . 1 . Melee . | . . . Uniques/NPCs Destroyed . | . . . Combat | -11 -10 -10 -------- Run | Yrd Mat Min Hostile Shots Fired 43 | . 19 24 Missed 12 | . 5 7 Damage Taken 842 | . 186 656 Core 252 | . 30 222 Absorbed by Shields . | . . . Regen/Repaired (Parts) 110 | . 110 . Core Remaining (%) 100 | 100 . . Volleys Fired 30 | 6 18 6 Largest 2 | 2 2 2 Hottest 90 | 90 90 60 Shots Fired 60 | 12 36 12 Gun 60 | 12 36 12 Cannon . | . . . Launcher . | . . . Special . | . . . Kinetic 18 | . 7 11 Thermal 17 | 6 11 . Explosive . | . . . Electromagnetic 25 | 6 18 1 Robot Hit Streak 15 | 10 15 5 Robot Miss Streak 3 | 1 3 2 Penetration Max . | . . . Secondary Targets 1 | . 1 . Max Gunslinging Chain 1 | . 1 . Shots Hit Robots 41 | 10 22 9 Core Hits 21 | 5 14 2 Critical Kills . | . . . Critical Parts Destroyed . | . . . Critical Strikes 2 | 2 . . Burn 2 | 2 . . Melee Attacks . | . . . Impact . | . . . Slashing . | . . . Piercing . | . . . Sneak Attacks . | . . . Combat Hostiles . | . . . Follow-up Attacks . | . . . Damage Inflicted 559 | 159 322 78 Guns 493 | 126 289 78 Cannons . | . . . Explosions 66 | 33 33 . Melee . | . . . Ramming . | . . . Kinetic 87 | . 20 67 Thermal 189 | 93 96 . Explosive . | . . . Electromagnetic 283 | 66 206 11 Impact . | . . . Slashing . | . . . Piercing . | . . . Highest Corruption 2 | . 2 2 Average Corruption 2 | . 2 2 Corruption Purged . | . . . Corruption Blocked . | . . . Effects 14 | . 7 7 Message Errors 7 | . 4 3 Matter Fused 1 | . 1 . Heat Flow Errors 2 | . . 2 Parts Rejected 1 | . . 1 Data Loss (minor) 2 | . 2 . Alerts 1 | . . 1 Overload Shots . | . . . Overflow Damage . | . . . Projectiles . | . . . Explosions . | . . . Melee . | . . . Knockbacks . | . . . Impact . | . . . Kinetic . | . . . Secondary . | . . . Self-Inflicted Damage 36 | . 36 . Shots 1 | . 1 . Rammed . | . . . Targets Rammed . | . . . Kicked . | . . . Crushed . | . . . Highest Temperature 300 | 120 300 198 Average Temperature 91 | 50 111 78 Received Heat Transfer 57 | . 57 . Siege Activations . | . . . Robots Corrupted . | . . . Combat Hostiles . | . . . Parts Fried 1 | . 1 . Impact Corruptions . | . . . Robots Melted . | . . . Combat Hostiles . | . . . Parts Melted . | . . . Heat Transferred 618 | 383 235 . Parts Sabotaged . | . . . Parts Stolen . | . . . Parts Stripped . | . . . Power Chain Reactions 2 | 1 1 . Alert | -11 -10 -10 ------- Run | Yrd Mat Min Peak Influence 287 | 20 287 76 Initial 76 | . 13 76 Average 94 | 9 117 68 Maximum Alert Level 1 | . 1 . Low Security (%) 86 | 100 78 100 Level 1 13 | . 21 . Level 2 . | . . . Level 3 . | . . . Level 4 . | . . . Level 5 . | . . . High Security . | . . . Max Security . | . . . Squads Dispatched 1 | . 1 . Investigation 1 | . 1 . Extermination . | . . . Reinforcement . | . . . Assault . | . . . Garrison . | . . . Intercept . | . . . Searches Triggered . | . . . Construction Impeded . | . . . Haulers Reinforced . | . . . Active Scanning Responses . | . . . Cargo Convoy Interrupts . | . . . Stealth | -11 -10 -10 --------- Run | Yrd Mat Min Distress Signals 1 | . 1 . Communications Jammed . | . . . Distress Signals . | . . . Times Spotted 14 | . 13 1 Peak Tracking Total 3 | . 3 1 Tactical Retreats . | . . . Traps | -11 -10 -10 ------- Run | Yrd Mat Min Traps Triggered . | . . . Indirectly . | . . . Trap Hack Attempts . | . . . Triggered . | . . . Disarmed . | . . . Reprogrammed . | . . . Reused . | . . . Traps Extracted . | . . . Installed . | . . . Triggered . | . . . Machines | -11 -10 -10 ---------- Run | Yrd Mat Min Machines Disabled . | . . . Max in Single Turn . | . . . Machines Repaired . | . . . Machines Dismantled . | . . . Machines Sabotaged 1 | . 1 . Overloaded Fab Kills . | . . . Hacking | -11 -10 -10 --------- Run | Yrd Mat Min Machines Accessed 9 | . 9 . Terminals 6 | . 6 . Fabricators . | . . . Repair Stations 1 | . 1 . Recycling Units 2 | . 2 . Scanalyzers . | . . . Garrison Access . | . . . Total Hacks 32 | . 32 . Successful 19 | . 19 . Failed 12 | . 12 . Catastrophic 1 | . 1 . Database Lockouts 1 | . 1 . Manual 12 | . 12 . Terminals 22 | . 22 . Fabricators . | . . . Repair Stations 6 | . 6 . Recycling Units 4 | . 4 . Scanalyzers . | . . . Garrison Access . | . . . Terminal Hacks 8 | . 8 . Part Schematic 2 | . 2 . Prototype ID Bank 1 | . 1 . Branch Access Points 1 | . 1 . Locate Traps 1 | . 1 . Maintenance Status 1 | . 1 . Reinforcement Status 1 | . 1 . Registered Prototypes 1 | . 1 . Fabricator Hacks . | . . . Repair Station Hacks 4 | . 4 . Scan Component 2 | . 2 . Repair 2 | . 2 . Recycling Unit Hacks 2 | . 2 . Report Inventory 2 | . 2 . Scanalyzer . | . . . Garrison Access Hacks . | . . . Unauthorized Hacks 5 | . 5 . Terminals 4 | . 4 . Botnet 2 | . 2 . Operators 1 | . 1 . Sabotage 1 | . 1 . Fabricators . | . . . Repair Stations . | . . . Recycling Units 1 | . 1 . Mask 1 | . 1 . Scanalyzers . | . . . Garrison Access . | . . . Data Cores Recovered . | . . . Used . | . . . Hacking Detections 7 | . 7 . Full Trace Events . | . . . Feedback Events . | . . . Feedback Blocked . | . . . Robot Schematics Acquired . | . . . Robots Built . | . . . Authchips . | . . . Time . | . . . Total Robot Build Rating . | . . . Part Schematics Acquired 2 | . 2 . Parts Built . | . . . Authchips . | . . . Time . | . . . Total Part Build Rating . | . . . Parts Repaired 2 | . 2 . Time 52 | . 52 . Parts Recycled . | . . . Recycled Matter . | . . . Retrieved Matter . | . . . Retrieved Components . | . . . Parts Scanalyzed . | . . . Part Schematics Acquired . | . . . Parts Damaged . | . . . Bothacking | -11 -10 -10 ------------ Run | Yrd Mat Min Used RIF Installer . | . . . Robots Hacked . | . . . Non-combat . | . . . Combat . | . . . Robot Hacks Applied . | . . . Relay Couplers Released . | . . . Fabnet Peak Effective % . | . . . Robots Rewired . | . . . Allies Hacked . | . . . Hacks Repelled . | . . . Allies | -11 -10 -10 -------- Run | Yrd Mat Min Total Allies 1 | . . 1 Largest Group 1 | . . 1 Highest-Rated Group 31 | . . 31 Highest-Rated Ally 31 | . . 31 Total Orders . | . . . Ally Attacks 2 | . . 2 Total Damage 41 | . . 41 Kills . | . . . Allies Corrupted . | . . . Allies Melted . | . . . Intel | -11 -10 -10 ------- Run | Yrd Mat Min Robot Analysis Total . | . . . Derelict Logs Recovered 1 | . . 1 Drone Launches . | . . . Drone Recoveries . | . . . Exploration | -11 -10 -10 ------------- Run | Yrd Mat Min Turns Passed 1509 | 113 953 443 Spaces Moved 814 | 48 479 287 Core 12 | 10 . 2 Treads 213 | 26 187 . Legs 586 | 12 292 282 Wheels 3 | . . 3 Hover . | . . . Flight . | . . . Fastest Speed 50 | 50 120 50 Average Speed 130 | 140 135 119 Slowest Speed 190 | 190 160 120 Overloaded Moves . | . . . Propulsion Burnouts . | . . . Robots Hopped . | . . . Cave-ins Triggered . | . . . Exploration Rate (%) 39 | 4 69 44 Regions Visited 2 Branch Regions 1 Pre-discovered Areas . | . . . Known Exits Taken 1 | . 1 . Unknown Exits Taken 1 | 1 . . Scrap Searched 1 | . . 1 Spaces Dug . | . . . Terrain Destroyed 7 | . 7 . Melee . | . . . Projectile . | . . . AOE 7 | . 7 . Terrain Rammed . | . . . Walls Destroyed . | . . . Machines Disabled . | . . . Actions | -11 -10 -10 --------- Run | Yrd Mat Min Total 1207 | 78 750 379 Wait 325 | 10 234 81 Move 812 | 47 478 287 Hop . | . . . Pick Up 15 | 7 7 1 Fast Attach 10 | 6 4 . Attach 3 | 1 . 2 Detach 2 | . 2 . Swap 2 | 1 1 . Drop 8 | . 6 2 Fire 30 | 6 18 6 Melee . | . . . Ram . | . . . Kick . | . . . Crush . | . . . Escape Stasis . | . . . Rewire . | . . . Trap . | . . . Miscellaneous . | . . . Route ------- -11/Scrapyard -10/Materials (discovered 3 exits: [*Mat x2] / *Min) -10/Mines (discovered 1 exit: [*Mat]) History --------- Turn | Location | Event 2 | -11/Scrapyard | Met Revision 17 6 | -11/Scrapyard | Discovered new exit (range 16) 114 | -11/Scrapyard | Entered Materials 305 | -10/Materials | Build established: Mutant 312 | -10/Materials | Discovered new exit (range 15) 750 | -10/Materials | Identified exit to Mines 763 | -10/Materials | Central database locked down 879 | -10/Materials | Discovered new exit (range 8) 929 | -10/Materials | Repaired Aluminum Leg 957 | -10/Materials | Repaired Aluminum Leg 1067 | -10/Materials | Entered Mines 1135 | -10/Mines | Discovered new exit (range 7) 1321 | -10/Mines | Learned 8 Materials zone layouts 1366 | -10/Mines | Received a Mining Laser from a helpful Derelict 1505 | -10/Mines | Core integrity fell below 50% 1509 | -10/Mines | Core integrity fell below 20% 1510 | -10/Mines | Destroyed by YI-UF0 with YI-UF0's Doublenader Last Messages --------------- 01490_ EM Pulse Gun destroyed. 01490_ Lgt. Ion Engine destroyed. 01492_ The unstable cave ceiling collapses. 01492_ YI-UF0: "BAROOM!" 01492_ LG-USI(g) destroyed. 01492_ R-06 Scavenger destroyed. 01493_ The unstable cave ceiling collapses. 01499_ U-05 Engineer lays Concrete. 01500_ The unstable cave ceiling collapses. 01500_ U-05 Engineer destroyed. 01501_ The unstable cave ceiling collapses. 01502_ Aluminum Leg destroyed. 01503_ The unstable cave ceiling collapses. 01504_ System corrupted: Lgt. Assault Rifle rejected. 01504_ Lgt. Assault Rifle destroyed. 01507_ The unstable cave ceiling collapses. 01508_ Aluminum Leg destroyed. 01508_ Com. Wheel destroyed. 01509_ Dropped Med. Storage Unit. 01510_ The unstable cave ceiling collapses. Map ----- +----------------------------------------------------+ | ???????##### #???????????????????????????????????? | | ???????????# #???????????????????????????????????? | | ???????????# #???????????????????????????????????? | | ???????????# #??####?????????????????????????????? | | ???????????# #??# #?????????????????????????????? | | ???????????# #### ##????????????????????????????? | | ???????????# ###??????????????????????????? | | ???????????# ##?????????????????????????? | | ???????????####### #?????????????????????????? | | ?????????????????## #?????????????????????????? | | ??????????????????## ##????????????????????????? | | ???????????????????## ##???????????????????????? | | ????????????????????## ##??????????????????????? | | ????????????????????## #??????????????????????? | | ????????????????????# #??????????????????????? | | ????????????????????# ##??????????????????????? | | ????????????????????# ##???????????????????????? | | #####??????????????## #????????????????????????? | | ##???????????### ##????????????????????????? | | #########??## ##??????????? ?????????????? | | #??# #####??????? ??????????????? | | ## ##### #??# #?????? #??????????????? | | ######???# #??### ## #?????# #??????????????? | | ###??????# #????## ### ####? #? ??????????? | | ##?????# #?????# ## ! ## # #??????????? | | #?????# ####### # @ = #??????????? | | # #?????# ## # # ????????? | | ## #?????# # !!!= # ""?????????? | | ## #?????## # ! g ""?????????? | | #??????## # ""?????????? | | ## #???????# % # ?????????? | | ?# #??????# ## ## ## ?????????? | | ?# #??????## # # ??????????? | | ?# #???????## ## # #?????????? | | ?# #????????# ## ##?? #? #?????????? | | ?# #????????### #####????##??? ??????????? | | ?# #??????????# % #????########????????????? | | ?# ##????????# |%= #??## #????????????? | | ?# #????????# !%######### !!! #????????????? | | ?### #???????# !!! #????????????? | | ???# #???????## ##### !!!! #????????????? | | ???# #???????# ???# !!!! #????????????? | | #??# #??????## # # ###??# #????????????? | | #### #?????## ## ????# < #????????????? | | #???### ##? ????# #???????????? | | """ #?## ##???????# #???????????? | | """ #?# ###?????## ##???????????? | | """ ##?# ##?????### ####????????????? | | ##?## #???????### ##???????????????? | | #####??# ## ##????????####????????????????? | +----------------------------------------------------+ Best States ------------- Heat Dissipation 25 Energy Generation 10 Energy Capacity 125 Matter Stores 300 Matter Capacity 300 Sight Range 16 Terrain Scan Density 10 Evasion (%) 55 Recoil Reduction 1 Item Schematics ----------------- Sensor Array | -10/Materials | Hacked ECM Suite | -10/Materials | Hacked Robot Schematics ------------------ None Fabricated ------------ Nothing Alien Tech Used ----------------- None Achievements -------------- None Challenges ------------ None Game ------ Seed HugeMassBank Manual? 0 Play Time 00:20:19 Cumulative 209.9 hours Start 2024.07.27 @ 11:08:34 End 2024.07.27 @ 11:27:08 Sessions 1 Manual Loads 0 Difficulty Rogue Special Mode None Game No. 162 Rogue 162 Adventurer 0 Explorer 0 Win Type - Total 1 Types 1/0/0/0/0/0/0/0/0 Lore% 57 Gallery% 64 Achievement% 41 Wizard Run 0 Options --------- Layout 0 ASCII 0 Keyboard 1 Movement Numpad Keybinds 0 Fullscreen 1 Font 12/Smallcaps Map View 83x54 Zoom Use 0% Tactical HUD 1 Map Filters NONE Filters NONE Steam 1 RUN: 98ad0020-dd06-49f0-b19a-497fe6a6cd38